fUSD/lending_fUSD_20260227
["ID","MTS","AMOUNT","RATE_DAILY","PERIOD"]
[406792146,1772195461338,-243.359098,0.000419,90]
[406792147,1772195461348,-243.359098,0.000419,90]
[406792148,1772195461357,-243.359098,0.000419,90]
[406792149,1772195461366,-243.359099,0.000419,90]
[406792150,1772195461375,-314.618922,0.000419,120]
[406792151,1772195461384,-151.0,0.000419,120]
[406792152,1772195461393,-314.618922,0.000419,120]
[406792153,1772195461404,-151.0,0.000419,120]
[406792154,1772195461413,-314.618922,0.000419,120]
[406792155,1772195461422,-222.796126,0.000419,120]
[406792156,1772195461432,-314.618922,0.000419,120]
[406792157,1772195461442,-151.0,0.000419,120]
[406792158,1772195461452,-151.0,0.000419,120]
[406792159,1772195461461,-151.0,0.000419,120]
[406792160,1772195461472,-151.0,0.000419,120]
[406792161,1772195461482,-151.0,0.000419,120]
[406792162,1772195461491,-151.0,0.000419,120]
[406792163,1772195461501,-290.36378,0.000419,120]
[406792164,1772195461510,-150.0,0.00041904,30]
[406792165,1772195461522,-172.00374807,0.00041915,30]
[406792166,1772195461531,-311.79712589,0.00041915,30]
[406792167,1772195461541,-844.0,0.00041918,120]
[406792168,1772195461550,-600.0,0.00041918,10]
[406792169,1772195461559,-150.0,0.00041928,30]
[406792170,1772195461568,-150.0,0.00041932,30]
[406792171,1772195461578,-150.0,0.00041935,30]
[406792172,1772195461587,-150.0,0.00041935,30]
[406792173,1772195461596,-150.0,0.00041949,30]
[406792174,1772195461605,-150.0,0.00041949,30]
[406792175,1772195461614,-150.0,0.00041956,30]
[406792176,1772195461624,-172.00374807,0.00041961,30]
[406792177,1772195461633,-311.79712589,0.00041961,30]
[406792178,1772195461643,-150.0,0.00041962,30]
[406792179,1772195461654,-151.465,0.00041975,14]
[406792180,1772195461664,-201.95,0.00041975,14]
[406792181,1772195461673,-150.0,0.00041981,30]
[406792182,1772195461682,-160.0,0.0004199,16]
[406792183,1772195461691,-150.0,0.00041994,30]
[406792184,1772195461700,-419.17899855,0.00041999,120]
[406792185,1772195461710,-227.0,0.00042,2]
[406792186,1772195461720,-3000.0,0.00042,30]
[406792187,1772195461730,-1000.0,0.00042,120]
[406792188,1772195461739,-411.62242813,0.00042,120]
[406792189,1772195461751,-502.47396862,0.00042,120]
[406792190,1772195461761,-1000.0,0.00042,2]
[406792191,1772195461770,-293.0,0.00042,120]
[406792192,1772195461780,-1000.0,0.00042,120]
[406792193,1772195461790,-1000.0,0.00042,120]
[406792194,1772195461799,-1000.0,0.00042,30]
[406792195,1772195461809,-1689.0,0.00042,120]
[406792196,1772195461818,-5297.62122258,0.00042,14]
[406792197,1772195461829,-1373.7099238,0.00042,2]
[406792198,1772195461840,-151.97762121,0.00042,3]
[406792199,1772195461849,-451.59736965,0.00042,120]
[406792200,1772195461859,-41623.10269875,0.00042,30]
[406792201,1772195461873,-4059.490708,0.00042,30]
[406792202,1772195461884,-10994.50749735,0.00042,30]
[406792203,1772195461894,-740.82199092,0.00042,120]
[406792204,1772195461907,-500.0,0.00042,2]
[406792205,1772195461917,-251.67269516,0.00042,30]
[406792206,1772195461927,-178.94920417,0.00042,120]
[406792207,1772195461936,-599.94006105,0.00042,14]
[406792208,1772195461945,-229.13128019,0.00042,120]
[406792209,1772195461955,-900.0,0.00042,2]
[406792210,1772195461964,-4243.22899407,0.00042,7]
[406792211,1772195461976,-756.77100593,0.00042,7]
[406792212,1772195461986,-195.77690621,0.00042,2]
[406792213,1772195462125,-35.48347261,0.00042,2]
[406792214,1772195462158,-200.0,0.00042,8]
[406792215,1772195462168,-200.0,0.00042,8]
[406792216,1772195462178,-200.0,0.00042001,8]
[406792217,1772195462187,-200.0,0.00042001,8]
[406792218,1772195462196,-1040.2,0.00042004,30]
[406792219,1772195462205,-172.00374807,0.00042008,30]
[406792220,1772195462215,-150.0,0.00042008,30]
[406792221,1772195462225,-311.79712589,0.00042008,30]
[406792222,1772195462234,-1370.14730468,0.0004201,2]
[406792223,1772195462244,-150.0,0.00042021,30]
[406792224,1772195462253,-150.0,0.00042024,30]
[406792225,1772195462262,-150.0,0.00042024,30]
[406792226,1772195462271,-150.0,0.00042029,30]
[406792227,1772195462280,-172.00374807,0.00042054,30]
[406792228,1772195462289,-311.79712589,0.00042054,30]
[406792229,1772195462300,-150.0,0.00042072,30]
[406792230,1772195462309,-200.0,0.00042075,8]
[406792231,1772195462318,-200.0,0.00042075,8]
[406792232,1772195462327,-150.0,0.00042078,30]
[406792233,1772195462337,-150.0,0.00042079,30]
[406792234,1772195462347,-582.0,0.000421,3]
[406792235,1772195462357,-150.0,0.000421,30]
[406792236,1772195462366,-150.0,0.000421,30]
[406792237,1772195462375,-172.00374807,0.00042101,30]
[406792238,1772195462385,-311.79712589,0.00042101,30]
[406792239,1772195462394,-198.0,0.00042112,16]
[406792240,1772195462408,-150.0,0.00042118,30]
[406792241,1772195462417,-175.69965544,0.00042121,120]
[406792242,1772195462427,-200.0,0.00042126,8]
[406792243,1772195462439,-150.0,0.00042126,30]
[406792244,1772195462448,-1951.11795749,0.00042137,30]
[406792245,1772195462538,-1302.97179547,0.0001279,2]
[406792246,1772195462556,-268.3836,0.0001279,2]
[406792247,1772195462567,-7412.13091415,0.0001279,2]
[406792248,1772195462576,-2114.50238179,0.00026144,2]
[406792249,1772195462586,-593.0,0.00039,30]
[406792250,1772195462596,-944.0,0.00039,30]
[406792251,1772195462605,-632.679465,0.00041096,120]
[406792252,1772195462615,-632.679465,0.00041096,120]
[406792253,1772195462624,-632.679465,0.00041096,120]
[406792254,1772195462634,-632.679465,0.00041096,120]
[406792255,1772195462643,-632.679465,0.00041399,120]
[406792256,1772195462655,-632.679465,0.000419,120]
[406792257,1772195462664,-632.679465,0.000419,120]
[406792258,1772195462674,-2551.68204251,0.00042137,30]
[406792259,1772195462683,-4502.8,0.00042137,30]
[406792260,1772195462692,-150.0,0.00042137,30]
[406792261,1772195462701,-172.00374807,0.00042147,30]
[406792262,1772195462710,-311.79712589,0.00042147,30]
[406792263,1772195462719,-150.0,0.00042154,30]
[406792264,1772195462728,-150.0,0.00042154,30]
[406792265,1772195462738,-150.0,0.00042154,30]
[406792266,1772195462747,-150.0,0.00042154,30]
[406792267,1772195462757,-150.0,0.00042173,120]
[406792268,1772195462766,-150.0,0.00042175,30]
[406792269,1772195462775,-150.0,0.00042176,30]
[406792270,1772195462784,-150.0,0.00042176,30]
[406792271,1772195462794,-150.0,0.00042178,30]
[406792272,1772195462804,-200.0,0.00042178,8]
[406792273,1772195462813,-844.0,0.00042192,120]
[406792274,1772195462822,-350.0,0.00042192,10]
[406792275,1772195462832,-172.00374807,0.00042194,30]
[406792276,1772195462842,-311.79712589,0.00042194,30]
[406792277,1772195462851,-150.0,0.00042196,30]
[406792278,1772195462860,-5658.82129949,0.000422,2]
[406792279,1772195462869,-150.0,0.00042216,30]
[406792280,1772195462879,-500.0,0.00042219,120]
[406792281,1772195462888,-65287.70535864,0.0004222,7]
[406792282,1772195463535,-7740.45352498,0.0004222,7]
[406792283,1772195476605,500.0,7.783e-05,2]
[406792284,1772195501288,-35000.0,7.783e-05,2]
[406792285,1772195505177,1637.20470788,7.6e-05,2]
[406792286,1772195511999,-35000.0,7.783e-05,2]
[406792287,1772195519600,-35000.0,7.783e-05,2]
[406792288,1772195582030,-29000.0,7.783e-05,2]
[406792289,1772195582981,189.0,7.782e-05,2]
[406792291,1772195633134,500.0,7.683e-05,2]
[406792292,1772195677011,500.0,7.782e-05,2]
[406792293,1772195677043,500.0,7.782e-05,2]
[406792294,1772195677081,500.0,7.782e-05,2]
[406792295,1772195677116,500.0,7.782e-05,2]
[406792296,1772195677367,402.88140074,7.782e-05,2]
[406792297,1772195677413,500.0,7.782e-05,2]
[406792298,1772195677448,500.0,7.782e-05,2]
[406792299,1772195677478,500.0,7.782e-05,2]
[406792300,1772195678836,500.0,7.782e-05,2]
[406792301,1772195678905,500.0,7.782e-05,2]
[406792302,1772195679743,257.10497418,7.782e-05,2]
[406792303,1772195681105,288.25179148,7.782e-05,2]
[406792304,1772195694135,500.0,7.782e-05,2]
[406792305,1772195694173,500.0,7.782e-05,2]
[406792306,1772195694217,500.0,7.782e-05,2]
[406792307,1772195694256,500.0,7.782e-05,2]
[406792308,1772195694290,500.0,7.782e-05,2]
[406792309,1772195694322,500.0,7.782e-05,2]
[406792310,1772195694356,500.0,7.782e-05,2]
[406792311,1772195694391,362.7718336,7.782e-05,2]
[406792312,1772195694417,137.2281664,7.782e-05,2]
[406792313,1772195694452,500.0,7.782e-05,2]
[406792314,1772195694487,500.0,7.782e-05,2]
[406792315,1772195694523,500.0,7.782e-05,2]
[406792316,1772195694556,500.0,7.782e-05,2]
[406792317,1772195694597,500.0,7.782e-05,2]
[406792318,1772195694660,500.0,7.782e-05,2]
[406792319,1772195694695,500.0,7.782e-05,2]
[406792320,1772195694729,500.0,7.782e-05,2]
[406792321,1772195694763,500.0,7.782e-05,2]
[406792322,1772195694797,500.0,7.782e-05,2]
[406792323,1772195694830,500.0,7.782e-05,2]
[406792324,1772195694902,500.0,7.782e-05,2]
[406792325,1772195694938,500.0,7.782e-05,2]
[406792326,1772195694972,500.0,7.782e-05,2]
[406792327,1772195695006,500.0,7.782e-05,2]
[406792328,1772195695040,500.0,7.782e-05,2]
[406792329,1772195695073,500.0,7.782e-05,2]
[406792330,1772195695107,500.0,7.782e-05,2]
[406792331,1772195695145,500.0,7.782e-05,2]
[406792332,1772195695580,362.7818336,7.782e-05,2]
[406792333,1772195695604,137.2181664,7.782e-05,2]
[406792334,1772195695638,500.0,7.782e-05,2]
[406792335,1772195695674,500.0,7.782e-05,2]
[406792336,1772195695882,238.348917,7.782e-05,2]
[406792337,1772195695918,500.0,7.782e-05,2]
[406792338,1772195695959,500.0,7.782e-05,2]
[406792339,1772195695995,500.0,7.782e-05,2]
[406792340,1772195701400,300.0,7.782e-05,2]
[406792341,1772195701434,1200.0,7.782e-05,2]
[406792342,1772195790092,291.4111,7.683e-05,2]
[406792343,1772195821454,300.0,7.782e-05,2]
[406792344,1772195837813,433.65348897,7.782e-05,2]
[406792346,1772195944679,150.0,7.782e-05,2]
[406792347,1772195945053,300.0,7.782e-05,2]
[406792348,1772195959491,500.0,7.782e-05,2]
[406792349,1772195959529,500.0,7.782e-05,2]
[406792350,1772195959744,500.0,7.782e-05,2]
[406792351,1772195959777,500.0,7.782e-05,2]
[406792352,1772195959807,500.0,7.782e-05,2]
[406792353,1772195959839,500.0,7.782e-05,2]
[406792354,1772195959874,500.0,7.782e-05,2]
[406792355,1772195959906,500.0,7.782e-05,2]
[406792356,1772195959938,500.0,7.782e-05,2]
[406792357,1772195959970,500.0,7.782e-05,2]
[406792358,1772195960007,500.0,7.782e-05,2]
[406792359,1772195960041,500.0,7.782e-05,2]
[406792360,1772195960074,500.0,7.782e-05,2]
[406792361,1772195960113,500.0,7.782e-05,2]
[406792362,1772195960179,500.0,7.782e-05,2]
[406792363,1772195960222,500.0,7.782e-05,2]
[406792364,1772195960258,500.0,7.782e-05,2]
[406792365,1772195960302,24.94541103,7.782e-05,2]
[406792366,1772195960327,475.05458897,7.782e-05,2]
[406792367,1772195960362,500.0,7.782e-05,2]
[406792368,1772195960410,500.0,7.782e-05,2]
[406792369,1772195960447,500.0,7.782e-05,2]
[406792370,1772195960484,500.0,7.782e-05,2]
[406792371,1772195960524,515.37716056,7.782e-05,2]
[406792372,1772195960562,500.0,7.782e-05,2]
[406792373,1772195960595,500.0,7.782e-05,2]
[406792374,1772195960632,500.0,7.782e-05,2]
[406792375,1772195960664,500.0,7.782e-05,2]
[406792376,1772195960702,500.0,7.782e-05,2]
[406792377,1772195960744,500.0,7.782e-05,2]
[406792378,1772195960779,500.0,7.782e-05,2]
[406792379,1772195974210,10000.01,7.683e-05,2]
[406792380,1772195974237,10000.01,7.683e-05,2]
[406792381,1772195974260,10000.01,7.683e-05,2]
[406792382,1772195974283,10000.01,7.683e-05,2]
[406792383,1772195974309,541.50894,7.683e-05,2]
[406792384,1772196001298,1200.0,7.682e-05,2]
[406792385,1772196006357,215.0,7.683e-05,2]
[406792387,1772196045729,500.0,7.682e-05,2]
[406792388,1772196045766,500.0,7.682e-05,2]
[406792389,1772196045800,500.0,7.682e-05,2]
[406792390,1772196045862,500.0,7.682e-05,2]
[406792391,1772196045895,500.0,7.682e-05,2]
[406792392,1772196045939,201.53771605,7.682e-05,2]
[406792393,1772196045979,500.0,7.682e-05,2]
[406792394,1772196046033,500.0,7.682e-05,2]
[406792395,1772196046102,500.0,7.682e-05,2]
[406792396,1772196046161,500.0,7.682e-05,2]
[406792397,1772196061279,248.0,7.682e-05,2]
[406792398,1772196096954,2867.124,7.529e-05,2]
[406792399,1772196097052,347.444,7.529e-05,2]
[406792406,1772196123389,300.0,7.682e-05,2]
[406792407,1772196124773,120.90428395,7.682e-05,2]
[406792408,1772196124798,29.09571605,7.682e-05,2]
[406792409,1772196149548,500.0,7.682e-05,2]
[406792410,1772196149601,500.0,7.682e-05,2]
[406792411,1772196149653,421.21870136,7.682e-05,2]
[406792412,1772196149708,500.0,7.682e-05,2]
[406792413,1772196149758,500.0,7.682e-05,2]
[406792414,1772196149823,500.0,7.682e-05,2]
[406792415,1772196149953,500.0,7.682e-05,2]
[406792416,1772196164889,500.0,7.682e-05,2]
[406792417,1772196171538,3304.17126545,7.5e-05,3]
[406792418,1772196179659,546.49350551,7.682e-05,2]
[406792419,1772196197609,639.48051653,7.682e-05,2]
[406792420,1772196197677,500.0,7.682e-05,2]
[406792421,1772196208814,546.49350551,7.682e-05,2]
[406792422,1772196219574,546.49350551,7.682e-05,2]
[406792423,1772196237418,546.49350551,7.682e-05,2]
[406792424,1772196256759,546.49350551,7.682e-05,2]
[406792425,1772196270859,546.49350551,7.682e-05,2]
[406792427,1772196284895,500.0,7.682e-05,2]
[406792428,1772196284957,592.98701102,7.682e-05,2]
[406792433,1772196296436,538.26702198,7.682e-05,2]
[406792434,1772196296463,8.22648353,7.682e-05,2]
[406792435,1772196310015,546.49350551,7.682e-05,2]
[406792436,1772196329681,546.49350551,7.682e-05,2]
[406792437,1772196343586,546.49350551,7.682e-05,2]
[406792438,1772196377917,546.49350551,7.682e-05,2]
[406792439,1772196432906,7805.80949443,7.583e-05,2]
[406792440,1772196432935,10000.01,7.583e-05,2]
[406792441,1772196432959,10000.01,7.583e-05,2]
[406792442,1772196631961,-300.0,7.582e-05,2]
[406792443,1772196631970,-214.0,7.582e-05,2]
[406792444,1772196631980,-480.88176241,7.583e-05,2]
[406792445,1772196631992,-4910.47634862,7.583e-05,2]
[406792446,1772196632017,-800.0,7.583e-05,2]
[406792447,1772196632074,-1109.24731293,7.583e-05,2]
[406792448,1772196632085,-249987.09334357,7.583e-05,2]
[406792449,1772196632184,-660.7,7.583e-05,2]
[406792450,1772196632196,-1571.96416629,7.583e-05,2]
[406792459,1772196638109,-526.95967685,7.583e-05,2]
[406792460,1772196638121,-8350.99785105,7.583e-05,2]
[406792461,1772196638132,-3103.96934854,7.583e-05,2]
[406792462,1772196638142,-339.88265974,7.583e-05,2]
[406792463,1772196638153,-11935.11915648,7.583e-05,2]
[406792464,1772196638164,-6275.55825757,7.583e-05,2]
[406792465,1772196638179,-1682141.32062152,7.583e-05,2]
[406792466,1772196638188,-5000.0,7.608e-05,2]
[406792467,1772196638197,-250.0,7.633e-05,2]
[406792468,1772196638207,-4217.92169466,7.65e-05,2]
[406792469,1772196638216,-284.40408352,7.668e-05,2]
[406792470,1772196638226,-500.0,7.682e-05,2]
[406792471,1772196638236,-592.98701102,7.682e-05,2]
[406792472,1772196638246,-500.0,7.682e-05,2]
[406792473,1772196638256,-500.0,7.682e-05,2]
[406792474,1772196638265,-500.0,7.682e-05,2]
[406792475,1772196638274,-500.0,7.682e-05,2]
[406792476,1772196638284,-500.0,7.683e-05,2]
[406792477,1772196638293,-160.15,7.7e-05,2]
[406792478,1772196638302,-200.0,7.8e-05,2]
[406792479,1772196638311,-213.66,7.808e-05,2]
[406792480,1772196638320,-400.0,7.9e-05,2]
[406792481,1772196638330,-600.0,8e-05,2]
[406792482,1772196638339,-2534.36,8.147e-05,2]
[406792483,1772196638348,-195.0,8.34e-05,2]
[406792484,1772196638357,-250.0,8.341e-05,2]
[406792485,1772196638366,-5000.0,8.341e-05,2]
[406792486,1772196638375,-193.0,8.341e-05,2]
[406792487,1772196638385,-1715.7823375,8.451e-05,2]
[406792488,1772196638395,-2542.37023746,8.451e-05,2]
[406792489,1772196638409,-195.0,8.451e-05,2]
[406792491,1772196638420,-2534.36,8.498e-05,2]
[406792493,1772196638429,-2534.36,8.848e-05,2]
[406792495,1772196638438,-2534.36,9.199e-05,2]
[406792497,1772196638447,-2534.36,9.55e-05,2]
[406792499,1772196638456,-2534.36,9.901e-05,2]
[406792500,1772196638465,-292.42,0.0001,2]
[406792502,1772196638475,-614.39365803,0.0001,2]
[406792503,1772196638485,-151.0,0.0001,2]
[406792504,1772196638494,-151.0,0.0001,2]
[406792505,1772196638504,-151.0,0.0001,2]
[406792506,1772196638513,-151.0,0.0001,2]
[406792507,1772196638522,-151.0,0.0001,2]
[406792508,1772196638531,-151.0,0.0001,2]
[406792509,1772196638541,-151.0,0.0001,2]
[406792510,1772196638549,-151.0,0.0001,2]
[406792512,1772196638559,-151.0,0.0001,2]
[406792513,1772196638568,-155.41111876,0.0001,2]
[406792514,1772196638577,-151.0,0.0001,2]
[406792515,1772196638586,-151.0,0.0001,2]
[406792516,1772196638595,-151.0,0.0001,2]
[406792517,1772196638604,-151.0,0.0001,2]
[406792518,1772196638614,-151.0,0.0001,2]
[406792519,1772196638626,-151.0,0.0001,2]
[406792520,1772196638635,-151.0,0.0001,2]
[406792521,1772196638645,-151.0,0.0001,2]
[406792522,1772196638654,-151.0,0.0001,2]
[406792523,1772196638663,-151.0,0.0001,2]
[406792524,1772196638673,-151.0,0.0001,2]
[406792525,1772196638682,-200.0,0.0001,2]
[406792526,1772196638691,-151.0,0.0001,2]
[406792527,1772196638701,-500.0,0.0001,2]
[406792528,1772196638710,-500.0,0.0001,2]
[406792529,1772196638719,-500.0,0.0001,2]
[406792530,1772196638729,-500.0,0.0001,2]
[406792531,1772196638738,-500.0,0.0001,2]
[406792532,1772196638747,-500.0,0.0001,2]
[406792533,1772196638757,-500.0,0.0001,2]
[406792534,1772196638766,-500.0,0.0001,2]
[406792535,1772196638775,-500.0,0.0001,2]
[406792536,1772196638785,-500.0,0.0001,2]
[406792537,1772196638794,-500.0,0.0001,2]
[406792538,1772196638804,-500.0,0.0001,2]
[406792539,1772196638814,-500.0,0.0001,2]
[406792540,1772196638823,-500.0,0.0001,2]
[406792541,1772196638832,-500.0,0.0001,2]
[406792542,1772196638842,-500.0,0.0001,2]
[406792543,1772196639047,-500.0,0.0001,2]
[406792544,1772196639056,-500.0,0.0001,2]
[406792545,1772196639065,-500.0,0.0001,2]
[406792546,1772196639074,-500.0,0.0001,2]
[406792547,1772196639084,-500.0,0.0001,2]
[406792548,1772196639093,-500.0,0.0001,2]
[406792549,1772196639102,-500.0,0.0001,2]
[406792550,1772196639111,-500.0,0.0001,2]
[406792551,1772196639121,-500.0,0.0001,2]
[406792552,1772196639130,-500.0,0.0001,2]
[406792553,1772196639140,-500.0,0.0001,2]
[406792554,1772196639149,-500.0,0.0001,2]
[406792555,1772196639157,-151.0,0.0001,2]
[406792556,1772196639166,-177.88175094,0.0001,2]
[406792557,1772196639175,-460.0,0.00010015,2]
[406792558,1772196639184,-250.0,0.0001002,2]
[406792559,1772196639193,-396.0,0.00010035,2]
[406792560,1772196639202,-151.0,0.00010055,2]
[406792561,1772196639211,-151.0,0.0001011,2]
[406792562,1772196639220,-151.0,0.00010165,2]
[406792563,1772196639229,-151.0,0.0001022,2]
[406792564,1772196639238,-2534.36,0.00010252,2]
[406792565,1772196639248,-292.42,0.00010274,2]
[406792566,1772196639257,-151.0,0.00010275,2]
[406792567,1772196639266,-151.0,0.0001033,2]
[406792568,1772196639277,-151.0,0.00010385,2]
[406792569,1772196639287,-151.0,0.0001044,2]
[406792570,1772196639296,-151.0,0.00010495,2]
[406792571,1772196639305,-292.42,0.00010548,2]
[406792572,1772196639318,-200.0,0.00010548,2]
[406792573,1772196639328,-151.0,0.0001055,2]
[406792574,1772196639338,-2534.36,0.00010603,2]
[406792575,1772196639347,-151.0,0.00010605,2]
[406792576,1772196639357,-234.50005133,0.0001066,2]
[406792577,1772196639365,-292.42,0.00010822,2]
[406792578,1772196639375,-767.0,0.00010877,2]
[406792579,1772196639384,-1850.18958404,0.000109,2]
[406792580,1772196639394,-4235.24,0.00010914,2]
[406792581,1772196639409,-2534.36,0.00010953,2]
[406792582,1772196639418,-500.0,0.00010959,2]
[406792583,1772196639428,-395.11120325,0.00010959,2]
[406792584,1772196639439,-292.42,0.00011096,2]
[406792585,1772196639448,-200.0,0.00011096,2]
[406792586,1772196639457,-515.4640117,0.00011099,2]
[406792587,1772196639466,-18967.79323064,0.00011099,2]
[406792588,1772196639477,-1600.0,0.00011218,2]
[406792589,1772196639486,-5513.8,0.00011267,2]
[406792590,1772196639496,-299.99,0.00011281,2]
[406792591,1772196639506,-9999.99,0.00011281,2]
[406792592,1772196639515,-658.73,0.00011281,2]
[406792593,1772196639525,-9999.99,0.00011281,2]
[406792594,1772196639534,-150.99,0.00011281,2]
[406792595,1772196639543,-2534.36,0.00011304,2]
[406792596,1772196639552,-150.0,0.00011376,2]
[406792597,1772196639562,-18967.79323056,0.0001144,2]
[406792598,1772196639571,-515.46401169,0.00011518,2]
[406792599,1772196639580,-200.0,0.00011644,2]
[406792600,1772196639590,-2534.36,0.00011655,2]
[406792601,1772196639599,-2534.36,0.00012006,2]
[406792602,1772196639608,-200.0,0.00012192,2]
[406792603,1772196639618,-2534.36,0.00012357,2]
[406792604,1772196639628,-1600.0,0.00012621,2]
[406792605,1772196639637,-2534.36,0.00012707,2]
[406792606,1772196639647,-200.0,0.0001274,2]
[406792607,1772196639655,-1850.189584,0.00012921,2]
[406792608,1772196639665,-2534.36,0.00013058,2]
[406792609,1772196639674,-200.0,0.00013288,2]
[406792610,1772196639684,-2534.36,0.00013409,2]
[406792611,1772196639693,-500.0,0.00013698,2]
[406792612,1772196639703,-500.0,0.00013698,2]
[406792613,1772196639712,-500.0,0.00013698,2]
[406792614,1772196639721,-500.0,0.00013698,2]
[406792615,1772196639731,-500.0,0.00013698,2]
[406792616,1772196639749,-500.0,0.00013698,2]
[406792617,1772196639767,-500.0,0.00013698,2]
[406792618,1772196639781,-500.0,0.00013698,2]
[406792619,1772196639792,-500.0,0.00013698,2]
[406792620,1772196639802,-500.0,0.00013698,2]
[406792621,1772196639813,-500.0,0.00013698,2]
[406792622,1772196639824,-500.0,0.00013698,2]
[406792623,1772196639834,-500.0,0.00013698,2]
[406792624,1772196639844,-500.0,0.00013698,2]
[406792625,1772196639853,-500.0,0.00013698,2]
[406792626,1772196639862,-500.0,0.00013698,2]
[406792627,1772196639871,-500.0,0.00013698,2]
[406792629,1772196639880,-500.0,0.00013698,2]
[406792630,1772196639890,-500.0,0.00013698,2]
[406792631,1772196639900,-500.0,0.00013698,2]
[406792632,1772196639909,-500.0,0.00013698,2]
[406792633,1772196639919,-500.0,0.00013698,2]
[406792634,1772196639928,-500.0,0.00013698,2]
[406792635,1772196639937,-267.29,0.00013699,2]
[406792636,1772196639946,-2534.36,0.0001376,2]
[406792637,1772196639955,-200.0,0.00013836,2]
[406792638,1772196639964,-1600.0,0.00014023,2]
[406792639,1772196639974,-2534.36,0.00014111,2]
[406792640,1772196639983,-267.29,0.00014384,2]
[406792641,1772196639992,-200.0,0.00014384,2]
[406792642,1772196640002,-2534.36,0.00014462,2]
[406792643,1772196640011,-2534.36,0.00014812,2]
[406792644,1772196640020,-774.48,0.00014853,2]
[406792645,1772196640029,-509.0,0.0001489,2]
[406792646,1772196640038,-200.0,0.00014932,2]
[406792647,1772196640047,-267.29,0.00015068,2]
[406792648,1772196640056,-160.0,0.00015088,2]
[406792649,1772196640065,-174.00015664,0.00015088,2]
[406792650,1772196640074,-18967.79323056,0.00015373,2]
[406792651,1772196640084,-1600.0,0.00015425,2]
[406792652,1772196640093,-200.0,0.0001548,2]
[406792653,1772196640102,-515.46401169,0.00015503,2]
[406792654,1772196640115,-267.29,0.00015753,2]
[406792655,1772196640124,-200.0,0.00016028,2]
[406792656,1772196640134,-267.29,0.00016438,2]
[406792657,1772196640143,-200.0,0.00016576,2]
[406792658,1772196640153,-1600.0,0.00016828,2]
[406792659,1772196640162,-500.0,0.0001693,2]
[406792660,1772196640171,-200.0,0.00017124,2]
[406792661,1772196640181,-10048.75,0.00017406,2]
[406792662,1772196640190,-54664.91,0.0001742,2]
[406792663,1772196640200,-318.38,0.0001744,2]
[406792664,1772196640209,-200.0,0.00017672,2]
[406792665,1772196640219,-4850.1,0.00017689,2]
[406792666,1772196640229,-1570.12213956,0.0001797,2]
[406792667,1772196640238,-500.0,0.00017973,2]
[406792668,1772196640248,-200.139566,0.00018128,2]
[406792669,1772196640257,-200.0,0.0001822,2]
[406792670,1772196640266,-1850.189584,0.00018334,2]
[406792671,1772196640276,-1000.0,0.00018521,2]
[406792673,1772196640285,-509.0,0.0001872,5]
[406792674,1772196640295,-200.0,0.00018768,2]
[406792675,1772196640304,-18967.79323056,0.00019305,2]
[406792676,1772196640313,-202.72622012,0.00019316,2]